bitfinex/quotes_SOLUSD_20250506
["timestamp","ask_amount","ask_price","bid_price","bid_amount"]
[1746570303065,32.82096961,146.61,146.56,40.54444031]
[1746570303693,14.3613135,146.6,146.56,40.54444031]
[1746570305691,40.3613135,146.61,146.57,14.3613135]
[1746570305871,14.3613135,146.61,146.57,21.18364522]
[1746570306082,21.18222207,146.61,146.57,6.82233172]
[1746570306393,47.18222207,146.61,146.57,6.82233172]
[1746570306703,137.7,146.6,146.57,6.82233172]
[1746570307591,137.7,146.6,146.57,21.18364522]
[1746570307891,137.7,146.59,146.57,6.82233172]
[1746570308184,137.7,146.59,146.58,14.3613135]
[1746570309695,137.7,146.59,146.58,21.18352662]
[1746570312195,137.7,146.62,146.58,40.60568819]
[1746570312399,137.7,146.62,146.61,14.3613135]
[1746570313798,137.7,146.62,146.61,21.18213063]
[1746570313983,137.7,146.65,146.61,21.18213063]
[1746570314184,137.7,146.64,146.62,14.3613135]
[1746570314389,137.7,146.64,146.62,33.6413135]
[1746570314776,137.7,146.64,146.62,19.28]
[1746570315701,14.3613135,146.63,146.62,19.28]
[1746570315999,152.0613135,146.63,146.62,19.28]
[1746570318599,137.7,146.63,146.62,19.28]
[1746570319597,137.7,146.63,146.62,26.10035193]
[1746570319974,137.7,146.63,146.62,19.28]
[1746570320476,137.7,146.63,146.62,40.46166543]
[1746570320674,137.7,146.63,146.62,19.28]
[1746570323200,152.0613135,146.63,146.62,19.28]
[1746570323498,158.88120028,146.63,146.62,19.28]
[1746570323703,152.0613135,146.63,146.62,19.28]
[1746570324082,137.7,146.63,146.62,19.28]
[1746570324598,152.0613135,146.63,146.62,19.28]
[1746570325503,137.7,146.63,146.62,19.28]
[1746570326598,158.88120028,146.63,146.62,19.28]
[1746570327487,14.3613135,146.63,146.62,19.28]
[1746570327802,14.3613135,146.63,146.59,21.18301162]
[1746570330511,137.7,146.62,146.59,21.18301162]
[1746570330705,137.7,146.61,146.59,21.18301162]
[1746570332108,137.7,146.61,146.58,26.10199552]
[1746570332307,137.7,146.61,146.59,14.3613135]
[1746570334213,137.7,146.61,146.59,21.18285403]
[1746570336110,137.7,146.61,146.59,6.82154053]
[1746570336286,137.7,146.61,146.59,21.18285403]
[1746570338103,136.7222,146.61,146.59,21.18285403]
[1746570338314,136.7222,146.61,146.59,14.3613135]
[1746570339605,136.7222,146.61,146.59,21.18301052]
[1746570340015,136.7222,146.61,146.59,6.82169702]
[1746570340207,136.7222,146.61,146.59,21.18301052]
[1746570342606,136.7222,146.61,146.58,19.28]
[1746570342607,136.7222,146.61,146.58,26.10194497]
[1746570342802,136.7222,146.61,146.58,40.46325847]
[1746570343019,136.7222,146.61,146.58,26.10194497]
[1746570343215,14.3613135,146.59,146.58,19.28]
[1746570343819,21.18306123,146.59,146.58,19.28]
[1746570344501,14.3613135,146.59,146.58,19.28]
[1746570345298,14.3613135,146.59,146.53,19.2]
[1746570345493,152.0613135,146.58,146.54,14.3613135]
[1746570346721,137.7,146.58,146.54,14.3613135]
[1746570346899,152.0613135,146.58,146.54,21.18520124]
[1746570347602,137.7,146.58,146.54,21.18520124]
[1746570347794,152.0613135,146.58,146.54,21.18520124]
[1746570348507,137.7,146.57,146.56,14.3613135]
[1746570349028,137.7,146.57,146.56,39.21866236]
[1746570349232,137.7,146.57,146.56,46.04180646]
[1746570349559,152.0613135,146.65,146.56,63.24182829]
[1746570349733,137.7,146.64,146.61,14.3613135]
[1746570349900,137.7,146.64,146.6,19.2]
[1746570350104,152.0613135,146.64,146.6,33.5613135]
[1746570350938,137.7,146.64,146.6,33.5613135]
[1746570351107,152.0613135,146.64,146.6,33.5613135]
[1746570351308,152.0613135,146.64,146.6,40.3823272]
[1746570352045,152.0613135,146.64,146.6,26.0210137]
[1746570352216,152.0613135,146.64,146.6,40.3823272]
[1746570353029,158.8807484,146.64,146.6,19.2]
[1746570353211,14.3613135,146.63,146.6,19.2]
[1746570353623,152.0613135,146.64,146.6,40.38247789]
[1746570353923,158.88081546,146.64,146.6,40.38247789]
[1746570354548,152.0613135,146.63,146.6,26.02119487]
[1746570356742,137.7,146.63,146.6,40.38250837]
[1746570357545,137.7,146.62,146.6,40.38250837]
[1746570358039,137.7,146.62,146.61,14.3613135]
[1746570358843,137.7,146.62,146.61,21.18213063]
[1746570361543,137.7,146.62,146.6,40.38237485]
[1746570362356,137.7,146.62,146.61,14.3613135]
[1746570363648,137.7,146.62,146.61,25.61262756]
[1746570363848,137.7,146.62,146.61,39.97394106]
[1746570366126,152.0613135,146.67,146.61,57.02598389]
[1746570366440,152.0613135,146.67,146.63,14.3613135]
[1746570366641,137.7,146.67,146.63,14.3613135]
[1746570366847,152.0613135,146.67,146.64,14.3613135]
[1746570367349,152.0613135,146.67,146.63,14.3613135]
[1746570368141,152.0613135,146.67,146.63,21.18078956]
[1746570371051,152.0613135,146.67,146.63,20.18078956]
[1746570371542,137.7,146.67,146.65,14.3613135]
[1746570373846,137.7,146.67,146.64,6.81904508]
[1746570374047,137.7,146.67,146.65,14.3613135]
[1746570375247,137.7,146.67,146.64,6.81904508]
[1746570375545,137.7,146.67,146.64,21.18035858]
[1746570376554,137.7,146.67,146.65,21.18013681]
[1746570377746,137.7,146.67,146.66,14.3613135]
[1746570378045,137.7,146.67,146.66,33.4613135]
[1746570379349,137.7,146.67,146.66,40.27980524]
[1746570387967,137.7,146.72,146.67,18.64964886]
[1746570388144,137.7,146.71,146.68,14.3613135]
[1746570388761,137.7,146.71,146.69,6.81709727]
[1746570388946,137.7,146.71,146.69,25.85709727]
[1746570389357,137.7,146.71,146.69,19.04]
[1746570390962,137.7,146.71,146.69,25.85704129]
[1746570391646,137.7,146.71,146.69,19.04]
[1746570392753,137.7,146.71,146.69,25.85707342]
[1746570392949,137.7,146.71,146.69,19.04]
[1746570394265,14.3613135,146.7,146.66,38.12]
[1746570394439,14.3613135,146.68,146.66,19.1]
[1746570394639,152.0613135,146.67,146.66,19.1]
[1746570395042,21.17934036,146.67,146.66,19.1]
[1746570395242,21.17934036,146.67,146.61,33.4613135]
[1746570395534,14.3613135,146.65,146.61,33.4613135]
[1746570396067,14.3613135,146.64,146.61,19.1]
[1746570396241,14.3613135,146.65,146.61,33.4613135]
[1746570396741,14.3613135,146.65,146.61,25.92075545]
[1746570396942,14.3613135,146.64,146.61,19.1]
[1746570397160,14.3613135,146.63,146.61,19.1]
[1746570397481,137.7,146.66,146.61,19.1]
[1746570397482,152.0613135,146.62,146.61,19.1]
[1746570398469,137.7,146.62,146.61,19.1]
[1746570399562,137.7,146.62,146.61,33.4613135]
[1746570400055,137.7,146.62,146.61,19.1]
[1746570401354,152.0613135,146.62,146.61,19.1]
[1746570401876,152.0613135,146.62,146.58,21.18343133]
[1746570402104,14.3613135,146.59,146.57,19.0]
[1746570402277,137.7,146.58,146.57,19.0]
[1746570402470,137.7,146.58,146.57,33.3613135]
[1746570402787,137.7,146.58,146.57,19.0]
[1746570403472,152.0613135,146.58,146.57,19.0]
[1746570403681,137.7,146.58,146.57,19.0]
[1746570404076,137.7,146.58,146.57,25.82267858]
[1746570404255,137.7,146.58,146.57,40.18399208]
[1746570405082,137.7,146.58,146.57,33.3613135]
[1746570405381,137.7,146.58,146.57,19.0]
[1746570406663,152.0613135,146.58,146.53,19.0]
[1746570406869,137.7,146.57,146.53,19.0]
[1746570407067,14.3613135,146.55,146.53,19.0]
[1746570407375,137.7,146.54,146.53,19.0]
[1746570407565,14.3613135,146.6,146.53,52.15312393]
[1746570407879,137.7,146.59,146.57,14.3613135]
[1746570408083,137.7,146.58,146.57,14.3613135]
[1746570408475,137.7,146.58,146.57,21.18399208]
[1746570409665,137.7,146.58,146.57,6.82267858]
[1746570409861,137.7,146.58,146.57,21.18399208]
[1746570410082,137.7,146.58,146.57,6.82267858]
[1746570410287,137.7,146.58,146.57,21.18399208]
[1746570410567,137.7,146.58,146.55,18.79181043]
[1746570410772,137.7,146.58,146.57,14.3613135]
[1746570411262,137.7,146.58,146.55,18.79181043]
[1746570411471,137.7,146.58,146.57,14.3613135]
[1746570412567,137.7,146.58,146.57,21.18399208]
[1746570414488,137.7,146.61,146.57,57.03249896]
[1746570414665,137.7,146.61,146.59,14.3613135]
[1746570416587,137.7,146.64,146.6,57.02761233]
[1746570416793,137.7,146.64,146.63,14.3613135]
[1746570417680,137.7,146.64,146.62,18.79181043]
[1746570417862,137.7,146.64,146.6,24.01664997]
[1746570418068,137.7,146.64,146.61,14.3613135]
[1746570418569,14.3613135,146.63,146.6,25.7812824]
[1746570418881,14.3613135,146.62,146.6,25.7812824]
[1746570419086,14.3613135,146.62,146.6,18.96]
[1746570419282,137.7,146.63,146.6,25.78122858]
[1746570419604,137.7,146.63,146.61,14.3613135]
[1746570420671,137.7,146.63,146.62,6.82035193]
[1746570422580,137.7,146.63,146.62,39.97347586]
[1746570423599,137.7,146.66,146.62,39.97347586]
[1746570423893,137.7,146.66,146.64,14.3613135]
[1746570424106,137.7,146.66,146.63,14.3613135]
[1746570424624,137.7,146.66,146.63,21.18103]
[1746570425884,158.87984804,146.66,146.61,6.82081713]
[1746570426091,152.0613135,146.65,146.61,21.18213063]
[1746570426694,152.0613135,146.65,146.61,6.82081713]
[1746570426888,14.3613135,146.64,146.6,40.14242649]
[1746570427409,14.3613135,146.62,146.59,25.84161537]
[1746570427626,152.0613135,146.64,146.6,14.3613135]
[1746570427909,137.7,146.64,146.61,14.3613135]
[1746570428081,137.7,146.64,146.6,14.3613135]
[1746570428287,137.7,146.64,146.59,25.84161537]
[1746570428288,137.7,146.64,146.61,14.3613135]
[1746570428487,152.0613135,146.64,146.6,14.3613135]
[1746570429307,14.3613135,146.63,146.59,40.20292887]
[1746570431412,137.7,146.62,146.54,13.15037533]
[1746570431587,6.81879615,146.66,146.58,14.3613135]
[1746570431780,20.8396135,146.67,146.63,14.3613135]
[1746570431979,8.4273244,146.68,146.63,14.3613135]
[1746570432286,1.6097,146.68,146.64,14.3613135]
[1746570432494,1.6097,146.68,146.62,0.14216157]
[1746570432700,15.9710135,146.68,146.64,0.14216157]
[1746570432907,15.9710135,146.68,146.65,18.92]
[1746570433104,22.7886013,146.68,146.65,18.92]
[1746570433307,1.6097,146.68,146.65,33.2813135]
[1746570433799,14.3613135,146.7,146.65,33.2813135]
[1746570434002,14.3613135,146.68,146.65,18.92]
[1746570434205,14.3613135,146.67,146.65,18.92]
[1746570434393,14.3613135,146.66,146.65,18.92]
[1746570434802,6.81663258,146.7,146.65,18.92]
[1746570435010,14.3613135,146.68,146.65,18.92]
[1746570435305,14.3613135,146.67,146.65,18.92]
[1746570436617,14.3613135,146.68,146.65,18.92]
[1746570436778,14.3613135,146.67,146.65,18.92]
[1746570437688,6.81735859,146.69,146.65,18.92]
[1746570438006,14.3613135,146.66,146.65,18.92]
[1746570438186,6.81735859,146.69,146.65,18.92]
[1746570438187,14.3613135,146.67,146.65,18.92]
[1746570438711,6.81678368,146.7,146.65,18.92]
[1746570438712,137.7,146.66,146.65,18.92]
[1746570441679,137.7,146.66,146.65,25.73895669]
[1746570441881,137.7,146.66,146.65,40.24243176]
[1746570442282,137.7,146.69,146.66,0.14216157]
[1746570442506,137.7,146.69,146.66,14.50347507]
[1746570445004,137.7,146.69,146.67,6.81802686]
[1746570445390,137.7,146.69,146.67,21.17934036]
[1746570446516,137.7,146.69,146.68,14.50347507]
[1746570447096,137.7,146.69,146.68,21.3210371]
[1746570447303,137.7,146.69,146.68,6.9597236]
[1746570448214,137.7,146.69,146.65,42.17076368]
[1746570448516,152.0613135,146.69,146.66,6.96065331]
[1746570448703,137.7,146.69,146.66,21.32196681]
[1746570449623,137.7,146.69,146.68,6.81756203]
[1746570450119,137.7,146.69,146.67,21.17914399]
[1746570450615,137.7,146.69,146.67,6.81783049]
[1746570452107,152.0613135,146.69,146.66,6.96047795]
[1746570452996,137.7,146.69,146.66,21.32179145]
[1746570453519,137.7,146.69,146.68,14.3613135]
[1746570453721,137.7,146.69,146.67,14.3613135]
[1746570454922,137.7,146.69,146.66,6.96047795]
[1746570455118,137.7,146.69,146.66,21.32179145]
[1746570455502,137.7,146.69,146.67,14.3613135]
[1746570455822,137.7,146.69,146.68,0.14216157]
[1746570456499,137.7,146.69,146.68,33.15312393]
[1746570457132,137.7,146.69,146.68,39.97068596]
[1746570457822,137.7,146.69,146.68,25.60937246]
[1746570458020,137.7,146.69,146.68,39.97068596]
[1746570459525,14.3613135,146.73,146.7,0.14216157]
[1746570460052,14.3613135,146.73,146.71,18.9]
[1746570461529,137.7,146.74,146.71,18.9]
[1746570461530,14.3613135,146.72,146.71,18.9]
[1746570461845,14.3613135,146.72,146.67,18.84]
[1746570462019,137.7,146.71,146.67,40.01898305]
[1746570462218,137.7,146.71,146.67,25.65766955]
[1746570462446,152.0613135,146.71,146.67,40.01898305]
[1746570462824,14.3613135,146.7,146.67,25.65766955]
[1746570463555,137.7,146.71,146.67,40.01898305]
[1746570463747,152.0613135,146.71,146.67,40.01898305]
[1746570463953,152.0613135,146.71,146.68,14.50347507]
[1746570463954,137.7,146.71,146.68,14.50347507]
[1746570465245,152.0613135,146.71,146.68,6.95926425]
[1746570466147,137.7,146.75,146.69,18.64964886]
[1746570466449,14.3613135,146.74,146.71,0.14216157]
[1746570467228,14.3613135,146.74,146.71,6.95810427]
[1746570467424,14.3613135,146.73,146.71,6.95810427]
[1746570468761,14.3613135,146.74,146.71,6.95810427]
[1746570474853,137.7,146.75,146.71,6.95810427]
[1746570475034,137.7,146.75,146.71,21.31941777]
[1746570475241,14.3613135,146.74,146.71,6.95810427]
[1746570476453,137.7,146.75,146.71,6.95810427]
[1746570476646,14.3613135,146.74,146.71,6.95810427]
[1746570477738,14.3613135,146.73,146.71,6.95810427]
[1746570479055,137.7,146.75,146.71,6.95810427]
[1746570479241,14.3613135,146.74,146.71,6.95810427]
[1746570481555,137.7,146.75,146.71,6.95810427]
[1746570482045,14.3613135,146.74,146.71,6.95810427]
[1746570482351,14.3613135,146.74,146.71,23.99852414]
[1746570482561,137.7,146.75,146.73,0.14216157]
[1746570482747,152.0613135,146.75,146.73,0.14216157]
[1746570483062,137.7,146.78,146.74,18.64964886]
[1746570483238,137.7,146.78,146.75,14.3613135]
[1746570483555,137.7,146.78,146.76,18.84]
[1746570483852,137.7,146.78,146.77,6.81338148]
[1746570484055,152.0613135,146.78,146.76,25.6537111]
[1746570484258,152.0613135,146.78,146.76,18.84]
[1746570484259,14.3613135,146.77,146.76,18.84]
[1746570484763,137.7,146.78,146.76,18.84]
[1746570485054,14.3613135,146.77,146.76,18.84]
[1746570485237,144.51299104,146.78,146.76,18.84]
[1746570485439,14.3613135,146.77,146.76,18.84]
[1746570486154,21.17469498,146.77,146.76,18.84]
[1746570486362,21.17469498,146.77,146.72,18.84]
[1746570486567,14.3613135,146.74,146.72,18.84]
[1746570486939,152.0613135,146.76,146.72,33.2013135]
[1746570487458,14.3613135,146.75,146.72,18.84]
[1746570487858,14.3613135,146.73,146.72,18.84]
[1746570488158,14.3613135,146.73,146.68,37.62]
[1746570488453,14.3613135,146.71,146.68,37.62]
[1746570489054,137.7,146.72,146.68,37.62]
[1746570489260,14.3613135,146.71,146.68,37.62]
[1746570489770,137.7,146.7,146.68,40.01879995]
[1746570490870,137.7,146.7,146.68,25.65748645]
[1746570491171,137.7,146.7,146.68,40.01879995]
[1746570491870,137.7,146.7,146.68,25.65748645]
[1746570492044,137.7,146.7,146.68,40.01879995]
[1746570497781,137.7,146.7,146.69,14.3613135]
[1746570498479,137.7,146.7,146.69,21.32057234]
[1746570498681,137.7,146.74,146.7,0.14216157]
[1746570498864,152.0613135,146.73,146.7,0.14216157]
[1746570499179,137.7,146.73,146.7,0.14216157]
[1746570499354,137.7,146.73,146.7,14.3613135]
[1746570500587,137.7,146.73,146.71,6.81616795]
[1746570502192,137.7,146.73,146.71,21.17748145]
[1746570502484,137.7,146.73,146.71,6.81616795]
[1746570504890,137.7,146.73,146.71,21.17748145]
[1746570505683,137.7,146.73,146.72,18.79181043]
[1746570505889,152.0613135,146.78,146.72,39.96882731]
[1746570506280,14.3613135,146.77,146.73,14.3613135]
[1746570506482,14.3613135,146.77,146.74,18.76]
[1746570506687,137.7,146.78,146.74,33.1213135]
[1746570506882,152.0613135,146.78,146.74,33.1213135]
[1746570507081,137.7,146.78,146.74,33.1213135]
[1746570507283,152.0613135,146.78,146.74,33.1213135]
[1746570507486,137.7,146.78,146.74,33.1213135]
[1746570507681,137.7,146.78,146.75,14.3613135]
[1746570507887,152.0613135,146.78,146.76,6.81384573]
[1746570508286,14.3613135,146.77,146.74,18.76]
[1746570508604,137.7,146.78,146.74,18.76]
[1746570508605,14.3613135,146.76,146.74,25.57473608]
[1746570508911,14.3613135,146.77,146.74,25.57473608]
[1746570509579,14.3613135,146.76,146.74,25.57473608]
[1746570509783,14.3613135,146.77,146.74,25.57473608]
[1746570510698,137.7,146.78,146.74,25.57473608]
[1746570511070,14.3613135,146.77,146.74,25.57473608]
[1746570511803,137.7,146.78,146.74,25.57473608]
[1746570512173,137.7,146.78,146.74,39.93604958]
[1746570512381,152.0613135,146.78,146.74,39.93604958]
[1746570512574,137.7,146.78,146.74,39.93604958]
[1746570512786,152.0613135,146.78,146.74,39.93604958]
[1746570513273,137.7,146.78,146.74,68.61167215]
[1746570513680,137.7,146.78,146.76,14.3613135]
[1746570513889,137.7,146.78,146.74,68.61167215]
[1746570514090,137.7,146.78,146.76,14.3613135]
[1746570514407,137.7,146.78,146.76,18.79181043]
[1746570514779,137.7,146.78,146.74,51.71689765]
[1746570515103,137.7,146.78,146.75,14.3613135]
[1746570515295,137.7,146.78,146.74,70.43689765]
[1746570515494,137.7,146.78,146.75,14.3613135]
[1746570515797,137.7,146.78,146.74,51.71689765]
[1746570515993,137.7,146.78,146.76,6.81384573]
[1746570517491,137.7,146.78,146.76,21.17515923]
[1746570517901,137.7,146.78,146.76,6.81384573]
[1746570518092,137.7,146.78,146.76,21.17515923]
[1746570518492,1.6411,146.83,146.74,18.76]
[1746570518493,152.0613135,146.77,146.74,18.76]
[1746570518708,152.0613135,146.76,146.74,25.57459575]
[1746570518998,137.7,146.75,146.74,18.76]
[1746570519212,137.7,146.75,146.74,25.57477443]
[1746570519881,152.0613135,146.75,146.74,18.76]
[1746570520190,137.7,146.75,146.74,18.76]
[1746570521009,152.0613135,146.75,146.74,18.76]
[1746570521313,14.3613135,146.75,146.7,14.3613135]
[1746570521514,14.3613135,146.75,146.71,14.3613135]
[1746570522308,8.38655193,146.78,146.71,14.3613135]
[1746570522487,14.3613135,146.76,146.72,14.3613135]
[1746570523393,14.3613135,146.75,146.72,6.81570338]
[1746570524104,14.3613135,146.75,146.71,14.3613135]
[1746570524489,14.3613135,146.75,146.7,6.81663258]
[1746570524490,13.8613135,146.74,146.7,21.17794608]
[1746570525198,14.3613135,146.73,146.69,6.81690714]
[1746570525405,14.3613135,146.73,146.69,21.17822064]
[1746570526695,1.5733,146.78,146.68,47.17867557]
[1746570526696,14.3613135,146.72,146.68,47.17867557]
[1746570527010,14.3613135,146.72,146.68,32.81736207]
[1746570527199,152.0613135,146.72,146.68,47.17867557]
[1746570528004,137.7,146.71,146.68,21.17867557]
[1746570528200,152.0613135,146.71,146.67,33.1213135]
[1746570528401,14.3613135,146.7,146.67,25.57798323]
[1746570528605,137.7,146.69,146.67,39.93929673]
[1746570529107,137.7,146.69,146.68,14.3613135]
[1746570529304,137.7,146.69,146.67,25.57798323]
[1746570529700,137.7,146.69,146.67,39.93929673]
[1746570537024,137.7,146.69,146.67,25.57798323]
[1746570537429,137.7,146.69,146.67,39.93929673]
[1746570538028,137.7,146.69,146.67,25.57798323]
[1746570538233,137.7,146.69,146.67,33.1213135]
[1746570538408,137.7,146.69,146.68,14.3613135]
[1746570540205,8.35518517,146.73,146.68,14.3613135]
[1746570540405,14.3613135,146.72,146.68,14.3613135]
[1746570540606,14.3613135,146.72,146.69,6.81709727]
[1746570542514,15.9012135,146.73,146.69,21.17841077]
[1746570543113,15.9012135,146.73,146.69,6.81709727]
[1746570543424,14.3613135,146.72,146.69,6.81709727]
[1746570543726,14.3613135,146.71,146.68,6.81739379]
[1746570544102,14.3613135,146.7,146.67,25.57781163]
[1746570544329,14.3613135,146.68,146.63,18.7]
[1746570544603,14.3613135,146.66,146.63,18.7]
[1746570544803,14.3613135,146.64,146.63,18.7]
[1746570545113,26.0,146.67,146.63,25.51980195]
[1746570545414,14.3613135,146.66,146.63,18.7]
[1746570545615,14.3613135,146.65,146.63,18.7]
[1746570547714,32.81814733,146.67,146.63,18.7]
[1746570547917,14.3613135,146.66,146.63,18.7]
[1746570548112,6.2122,146.7,146.63,39.88092051]
[1746570548113,32.2122,146.7,146.63,39.88092051]
[1746570548324,39.02901989,146.7,146.64,14.3613135]
[1746570548520,32.81681989,146.7,146.64,14.3613135]
[1746570548723,14.3613135,146.69,146.65,21.18027019]
[1746570548938,14.3613135,146.7,146.66,14.3613135]
[1746570549114,1.6021,146.71,146.66,14.3613135]
[1746570549532,14.3613135,146.69,146.65,21.18027019]
[1746570550129,14.3613135,146.69,146.65,6.81895669]
[1746570550338,14.3613135,146.69,146.65,21.18027019]
[1746570551636,14.3613135,146.7,146.66,14.3613135]
[1746570551832,14.3613135,146.7,146.65,21.18027019]
[1746570552039,1.6021,146.71,146.65,21.18027019]
[1746570552334,14.3613135,146.7,146.65,21.18027019]
[1746570552937,14.3613135,146.7,146.66,14.3613135]
[1746570553323,1.6021,146.71,146.66,14.3613135]
[1746570553525,14.3613135,146.7,146.65,14.3613135]
[1746570554644,14.3613135,146.7,146.64,23.86797599]
[1746570554813,14.3613135,146.69,146.64,23.86797599]
[1746570555014,14.3613135,146.69,146.65,14.3613135]
[1746570555214,1.6021,146.71,146.66,14.3613135]
[1746570555445,14.3613135,146.7,146.66,14.3613135]
[1746570556527,26.0,146.72,146.67,14.3613135]
[1746570556715,14.3613135,146.71,146.67,33.0413135]
[1746570556915,14.3613135,146.71,146.68,6.81756203]
[1746570557130,40.3613135,146.72,146.68,6.81756203]
[1746570557727,40.3613135,146.72,146.68,21.17887553]
[1746570558045,40.3613135,146.72,146.68,6.81756203]
[1746570558427,14.3613135,146.72,146.68,21.17887553]
[1746570559034,14.3613135,146.73,146.68,21.17887553]
[1746570559642,14.3613135,146.73,146.68,38.22278062]
[1746570560439,14.3613135,146.72,146.68,38.22278062]
[1746570561539,14.3613135,146.72,146.68,21.17887553]
[1746570561746,32.81484639,146.74,146.68,21.17887553]
[1746570561925,14.3613135,146.72,146.68,21.17887553]
[1746570562439,32.81484639,146.74,146.68,21.17887553]
[1746570562637,14.3613135,146.72,146.68,21.17887553]
[1746570563242,14.3613135,146.71,146.68,6.81756203]
[1746570563536,32.81487794,146.74,146.68,6.81756203]
[1746570563740,14.3613135,146.72,146.68,21.17887553]
[1746570563943,14.3613135,146.72,146.68,6.81756203]
[1746570564322,14.3613135,146.71,146.68,6.81756203]
[1746570566226,14.3613135,146.69,146.67,18.68]
[1746570567043,6.8153291,146.73,146.67,18.68]
[1746570567431,6.8153291,146.73,146.67,39.85923204]
[1746570567626,14.3613135,146.71,146.67,39.85923204]
[1746570569032,6.8153291,146.73,146.67,39.85923204]
[1746570569233,14.3613135,146.71,146.67,39.85923204]
[1746570569952,14.3613135,146.71,146.67,25.49791854]
[1746570570529,14.3613135,146.71,146.67,39.85923204]
[1746570571040,6.8153291,146.73,146.67,39.85923204]
[1746570571353,14.3613135,146.71,146.67,39.85923204]
[1746570571546,1.578,146.75,146.7,14.3613135]
[1746570571854,1.578,146.75,146.71,14.3613135]
[1746570571855,14.3613135,146.75,146.71,14.3613135]
[1746570572026,14.3613135,146.74,146.7,14.3613135]
[1746570572645,6.81316944,146.78,146.68,18.79181043]
[1746570572849,14.3613135,146.74,146.7,14.3613135]
[1746570573144,6.81360619,146.77,146.71,6.81616795]
[1746570573354,14.3613135,146.76,146.72,14.3613135]
[1746570573533,41.9595135,146.79,146.71,6.81616795]
[1746570573729,1.5982,146.79,146.74,18.64964886]
[1746570573928,14.3613135,146.78,146.74,18.64964886]
[1746570574145,14.3613135,146.77,146.74,18.64964886]
[1746570575152,1.5982,146.79,146.75,6.81431005]
[1746570575349,14.3613135,146.77,146.75,6.81431005]
[1746570576649,5.5686444,146.83,146.75,6.81431005]
[1746570576650,6.81128197,146.82,146.75,6.81431005]
[1746570576854,14.3613135,146.79,146.75,21.17562355]
[1746570577044,14.3613135,146.79,146.75,6.81431005]
[1746570577249,14.3613135,146.78,146.75,6.81431005]
[1746570578651,26.0,146.82,146.75,6.81431005]
[1746570578852,14.3613135,146.77,146.75,6.81431005]
[1746570579152,14.3613135,146.78,146.75,6.81431005]
[1746570579850,14.3613135,146.78,146.74,6.81477443]
[1746570581146,14.3613135,146.77,146.73,25.49517417]
[1746570581331,14.3613135,146.76,146.73,25.49517417]
[1746570581941,14.3613135,146.77,146.73,39.85648767]
[1746570582281,8.4691892,146.79,146.73,39.85648767]
[1746570582466,14.3613135,146.77,146.73,39.85648767]
[1746570583467,14.3613135,146.78,146.74,21.17588087]
[1746570584858,14.3613135,146.77,146.74,6.81456737]
[1746570586053,14.3613135,146.76,146.73,18.68]
[1746570586257,14.3613135,146.75,146.72,18.64]
[1746570586643,6.81293595,146.78,146.72,33.0013135]
[1746570586842,14.3613135,146.76,146.72,33.0013135]
[1746570587064,6.81293595,146.78,146.72,33.0013135]
[1746570587241,6.81293595,146.78,146.73,14.3613135]
[1746570587564,14.3613135,146.77,146.73,21.17655237]
[1746570587765,14.3613135,146.77,146.73,6.81523887]
[1746570588161,14.3613135,146.77,146.73,21.17655237]
[1746570590276,14.3613135,146.74,146.72,18.64]
[1746570590562,16.0176135,146.79,146.72,39.81694996]
[1746570590563,14.3613135,146.76,146.72,39.81694996]
[1746570590978,14.3613135,146.77,146.73,14.3613135]
[1746570591168,14.3613135,146.76,146.72,39.81694996]
[1746570591683,14.3613135,146.76,146.72,25.45563646]
[1746570592140,14.3613135,146.76,146.72,39.81694996]
[1746570592346,14.3613135,146.75,146.72,18.64]
[1746570592672,14.3613135,146.75,146.72,25.45561336]
[1746570594563,14.3613135,146.76,146.72,39.81692686]
[1746570595377,14.3613135,146.74,146.72,18.64]
[1746570596448,14.3613135,146.73,146.72,18.64]
[1746570596853,21.17612111,146.74,146.72,18.64]
[1746570597463,14.3613135,146.74,146.72,18.64]
[1746570597666,26.0,146.77,146.72,33.0013135]
[1746570597845,14.3613135,146.76,146.72,33.0013135]
[1746570598175,1.6563,146.79,146.72,25.45560097]